Cogmind - Beta 15 @@@ ROGUE MODE // 2025.09.22 @ 13:06:39 Player: beans Result: Destroyed by YI-UF0 with YI-UF0's Doublenader Performance ------------- Evolutions (1) 500 Regions Visited (3) 600 Robots Destroyed (0) 0 Value Destroyed (0) 0 Prototype IDs (0) 0 Alien Tech Used (0) 0 Bonus (119) 119 TOTAL SCORE: 1219 Bonus ------- Pacifist 200 Friendly Fire -81 Cogmind --------- Core Integrity 0/400 Matter 300/300 Energy 99/100 System Corruption 0% Temperature Cool (0) Movement Core (50) Location -9/Mines Parts ------- > --- POWER (1) -------- (None) > --- PROPULSION (4) --- (None) > --- UTILITY (2) ------ (None) > --- WEAPON (2) ------- (None) > --- INVENTORY (5) ---- (None) Peak State ------------ > --- POWER ------------ Ion Engine > --- PROPULSION ------- VTOL Module VTOL Module VTOL Module VTOL Module > --- UTILITY ---------- (None) > --- WEAPON ----------- Assault Rifle Assault Rifle > --- INVENTORY -------- (None) [Rating: 11] Favorites ----------- Power Ion Engine Engine Ion Engine Propulsion VTOL Module Treads Light Treads Flight Unit VTOL Module Utility None Weapon Assault Rifle Energy Gun Spread Laser Ballistic Gun Assault Rifle Build | -11 -10 -9 -9 ------- Run | Yrd Mat Mat Min Slots Evolved 2 | . . 2 . Power . | . . . . Propulsion 2 | . . 2 . Utility . | . . . . Weapon . | . . . . Parts Attached 11 | 5 2 2 2 Power 1 | 1 . . . Engine 1 | 1 . . . Core . | . . . . Reactor . | . . . . Propulsion 6 | 2 2 2 . Treads 2 | 2 . . . Leg . | . . . . Wheel . | . . . . Hover . | . . . . Flight 4 | . 2 2 . Utility . | . . . . Device . | . . . . Storage . | . . . . Processor . | . . . . Hackware . | . . . . Protection . | . . . . Artifact . | . . . . Weapon 4 | 2 . . 2 Energy Gun 1 | . . . 1 Energy Cannon . | . . . . Ballistic Gun 3 | 2 . . 1 Ballistic Cannon . | . . . . Launcher . | . . . . Special Weapon . | . . . . Impact Weapon . | . . . . Slashing Weapon . | . . . . Piercing Weapon . | . . . . Special Melee Weapon . | . . . . Unidentified Prototypes . | . . . . Parts Lost 9 | . . . 9 Power 1 | . . . 1 Propulsion 4 | . . . 4 Utility . | . . . . Weapon 4 | . . . 4 Highest Loss Streak 3 | . . . 3 To Critical Strikes . | . . . . Average Backups . | . 1 2 . Power . | . . . . Propulsion . | . 1 1 . Utility . | . . . . Weapon . | . . 1 . Tool/Special . | . . . . Unused Backups . | . . . . Power . | . . . . Propulsion . | . . . . Utility . | . . . . Weapon . | . . . . Tool/Special . | . . . . Average Slot Usage (%) 44 | . 62 58 33 Engine 6 | . 14 11 1 Treads 4 | . 11 . . Flight 20 | . 15 36 22 Ballistic Gun 13 | . 20 11 9 Peak Build Rating 11 | 5 7 10 11 Average Rating 5 | 3 5 9 5 On Entrance 5 | . 5 6 10 Naked Turns 48 | . . . 48 Heaviest Build 9 | 9 9 7 9 Greatest Support 40 | 40 40 16 16 Greatest Overweight (x) 2 | . 2 . . Average Overweight (x) . | . . . . Largest Inventory Capacity 5 | 5 5 5 5 Average Capacity 5 | 5 5 5 5 Most Carried 4 | 2 4 3 1 Average Carried . | . 1 1 . Final Capacity 5 | 5 5 5 5 Final Carried 3 | . 3 1 . Class Distribution -------------------- 65% | Sprinter 34% | Mutant Dominant Class ---------------- Sprinter | -10/Materials Sprinter | -9/Materials Sprinter | -9/Mines Resources | -11 -10 -9 -9 ----------- Run | Yrd Mat Mat Min Matter Collected 343 | 189 39 . 115 Remotely . | . . . . Salvage Created . | . . . . Parts . | . . . . Haulers Intercepted . | . . . . Recyclers Shooed . | . . . . Parts Field Recycled . | . . . . Retrieved Matter . | . . . . Parts Self-Destructed . | . . . . Prevented . | . . . . Kills | -11 -10 -9 -9 ------- Run | Yrd Mat Mat Min Combat Hostiles Destroyed . | . . . . Classes Destroyed . | . . . . Best Kill Streak . | . . . . Combat Bots Only . | . . . . Max Kills in Single Turn . | . . . . Gunslinging . | . . . . Exploded . | . . . . Melee . | . . . . Uniques/NPCs Destroyed . | . . . . Combat | -11 -10 -9 -9 -------- Run | Yrd Mat Mat Min Hostile Shots Fired 82 | . 12 . 70 Missed 45 | . 7 . 38 Hits 37 | . 5 . 32 Projectile 37 | . 5 . 32 AOE 22 | . . . 22 Damage Taken 887 | . 57 . 830 Core 414 | . . . 414 Absorbed by Shields . | . . . . Core Remaining (%) 100 | 100 100 . . Volleys Fired 23 | . 6 1 16 Largest 2 | . 1 1 2 Hottest 65 | . 20 20 65 Shots Fired 26 | . 6 1 19 Gun 26 | . 6 1 19 Cannon . | . . . . Launcher . | . . . . Special . | . . . . Kinetic 24 | . 6 1 17 Thermal 2 | . . . 2 Explosive . | . . . . Electromagnetic . | . . . . Robot Hit Streak 6 | . 1 . 6 Robot Miss Streak 3 | . 3 3 3 Penetration Max . | . . . . Secondary Targets . | . . . . Shots Hit Robots 12 | . 1 . 11 Core Hits 5 | . . . 5 Critical Kills . | . . . . Critical Parts Destroyed . | . . . . Critical Strikes . | . . . . Melee Attacks . | . . . . Impact . | . . . . Slashing . | . . . . Piercing . | . . . . Sneak Attacks . | . . . . Combat Hostiles . | . . . . Follow-up Attacks . | . . . . Damage Inflicted 139 | . 13 . 126 Guns 139 | . 13 . 126 Cannons . | . . . . Explosions . | . . . . Melee . | . . . . Ramming . | . . . . Kinetic 121 | . 13 . 108 Thermal 18 | . . . 18 Explosive . | . . . . Electromagnetic . | . . . . Impact . | . . . . Slashing . | . . . . Piercing . | . . . . Highest Corruption . | . . . . Average Corruption . | . . . . Corruption Purged . | . . . . Corruption Blocked . | . . . . Overload Shots . | . . . . Overflow Damage . | . . . . Projectiles . | . . . . Explosions . | . . . . Melee . | . . . . Knockbacks . | . . . . Impact . | . . . . Kinetic . | . . . . Secondary . | . . . . Self-Inflicted Damage . | . . . . Shots . | . . . . Rammed . | . . . . Targets Rammed . | . . . . Kicked . | . . . . Crushed . | . . . . Highest Temperature 26 | . 3 . 26 Average Temperature 13 | . 3 . 15 Received Heat Transfer 75 | . 33 . 42 Siege Activations . | . . . . Martial Activations . | . . . . Shielding Activations . | . . . . Robots Disrupted . | . . . . Combat Hostiles . | . . . . Robots Corrupted . | . . . . Combat Hostiles . | . . . . Parts Fried . | . . . . Impact Corruptions . | . . . . Robots Melted . | . . . . Combat Hostiles . | . . . . Parts Melted . | . . . . Heat Transferred 20 | . . . 20 Parts Sabotaged . | . . . . Parts Stolen . | . . . . Parts Stripped . | . . . . Power Chain Reactions . | . . . . Alert | -11 -10 -9 -9 ------- Run | Yrd Mat Mat Min Maximum Alert Level . | . . . . Low Security (%) 100 | 100 100 100 100 Level 1 . | . . . . Level 2 . | . . . . Level 3 . | . . . . Level 4 . | . . . . Level 5 . | . . . . High Security . | . . . . Max Security . | . . . . Peak Influence 80 | . 45 15 80 Initial 14 | . . 14 5 Average 11 | . 11 14 12 Influence Increases 166 | . 75 1 90 Destroy Structure 1 | . . 1 . Lose Combat Pursuer 165 | . 75 . 90 Influence Decreases 166 | . 40 21 105 Entered New Map 31 | . . 21 10 Time Decay 105 | . 40 . 65 Lost Part 30 | . . . 30 Squads Dispatched 2 | . 2 . . Investigation 1 | . 1 . . Extermination . | . . . . Reinforcement 1 | . 1 . . Assault . | . . . . Garrison . | . . . . Intercept . | . . . . Searches Triggered . | . . . . Construction Impeded . | . . . . Haulers Reinforced . | . . . . Active Scanning Responses . | . . . . Cargo Convoy Interrupts . | . . . . Stealth | -11 -10 -9 -9 --------- Run | Yrd Mat Mat Min Distress Signals . | . . . . Communications Jammed . | . . . . Distress Signals . | . . . . Times Spotted 27 | . 10 2 15 Peak Tracking Total 7 | . 4 2 7 Tactical Retreats 10 | . 3 . 7 Traps | -11 -10 -9 -9 ------- Run | Yrd Mat Mat Min Traps Triggered 1 | . 1 . . Indirectly . | . . . . Trap Hack Attempts . | . . . . Triggered . | . . . . Disarmed . | . . . . Reprogrammed . | . . . . Reused . | . . . . Traps Extracted . | . . . . Installed . | . . . . Triggered . | . . . . Machines | -11 -10 -9 -9 ---------- Run | Yrd Mat Mat Min Machines Disabled . | . . . . Max in Single Turn . | . . . . Machines Repaired . | . . . . Machines Dismantled . | . . . . Machines Sabotaged . | . . . . Overloaded Fab Kills . | . . . . Hacking | -11 -10 -9 -9 --------- Run | Yrd Mat Mat Min Machines Accessed 1 | . . . 1 Terminals 1 | . . . 1 Fabricators . | . . . . Repair Stations . | . . . . Recycling Units . | . . . . Scanalyzers . | . . . . Garrison Access . | . . . . Total Hacks 4 | . . . 4 Successful 1 | . . . 1 Failed 3 | . . . 3 Catastrophic . | . . . . Database Lockouts . | . . . . Manual 4 | . . . 4 Terminals 4 | . . . 4 Fabricators . | . . . . Repair Stations . | . . . . Recycling Units . | . . . . Scanalyzers . | . . . . Garrison Access . | . . . . Terminal Hacks . | . . . . Fabricator Hacks . | . . . . Repair Station Hacks . | . . . . Recycling Unit Hacks . | . . . . Scanalyzer . | . . . . Garrison Access Hacks . | . . . . Unauthorized Hacks 1 | . . . 1 Terminals 1 | . . . 1 Botnet 1 | . . . 1 Fabricators . | . . . . Repair Stations . | . . . . Recycling Units . | . . . . Scanalyzers . | . . . . Garrison Access . | . . . . Data Cores Recovered . | . . . . Used . | . . . . Hacking Detections 1 | . . . 1 Full Trace Events 1 | . . . 1 Feedback Events . | . . . . Feedback Blocked . | . . . . Robot Schematics Acquired . | . . . . Robots Built . | . . . . Authchips . | . . . . Time . | . . . . Total Robot Build Rating . | . . . . Part Schematics Acquired . | . . . . Parts Built . | . . . . Authchips . | . . . . Time . | . . . . Total Part Build Rating . | . . . . Parts Repaired . | . . . . Time . | . . . . Parts Recycled . | . . . . Recycled Matter . | . . . . Retrieved Matter . | . . . . Retrieved Components . | . . . . Parts Scanalyzed . | . . . . Part Schematics Acquired . | . . . . Parts Damaged . | . . . . Bothacking | -11 -10 -9 -9 ------------ Run | Yrd Mat Mat Min Used RIF Installer . | . . . . Robots Hacked . | . . . . Non-combat . | . . . . Combat . | . . . . Robot Hacks Applied . | . . . . Relay Couplers Released . | . . . . Fabnet Peak Effective % . | . . . . Robots Rewired . | . . . . Allies Hacked . | . . . . Hacks Repelled . | . . . . Allies | -11 -10 -9 -9 -------- Run | Yrd Mat Mat Min Total Allies . | . . . . Largest Group . | . . . . Highest-Rated Group . | . . . . Highest-Rated Ally . | . . . . Total Orders . | . . . . Ally Attacks . | . . . . Total Damage . | . . . . Kills . | . . . . Allies Corrupted . | . . . . Allies Melted . | . . . . Intel | -11 -10 -9 -9 ------- Run | Yrd Mat Mat Min Active Infowar (turns) . | . . . . Robot Analysis Total . | . . . . Derelict Logs Recovered 3 | . . . 3 Drone Launches . | . . . . Drone Recoveries . | . . . . Exploration | -11 -10 -9 -9 ------------- Run | Yrd Mat Mat Min Turns Passed 656 | 66 207 17 366 Spaces Moved 1150 | 43 381 46 680 Core 140 | 11 4 . 125 Treads 79 | 32 47 . . Legs . | . . . . Wheels . | . . . . Hover . | . . . . Flight 931 | . 330 46 555 Fastest Speed 26 | 50 32 26 26 Average Speed 42 | 131 49 26 33 Slowest Speed 160 | 160 160 32 50 Overloaded Moves . | . . . . Propulsion Burnouts . | . . . . Robots Hopped 9 | . 6 . 3 Potential Cave-ins . | . . . . Cave-ins Triggered . | . . . . Exploration Rate (%) 42 | 4 61 10 96 Regions Visited 3 Branch Regions 1 Pre-discovered Areas 2 | . . . 2 Known Exits Taken . | . . . . Unknown Exits Taken 3 | 1 1 1 . Scrap Searched 1 | . . . 1 Spaces Dug . | . . . . Terrain Destroyed . | . . . . Melee . | . . . . Projectile . | . . . . AOE . | . . . . Terrain Rammed . | . . . . Walls Destroyed . | . . . . Machines Disabled . | . . . . Actions | -11 -10 -9 -9 --------- Run | Yrd Mat Mat Min Total 1286 | 52 390 48 796 Wait 99 | . 1 . 98 Move 1131 | 42 369 45 675 Hop 7 | . 5 . 2 Pick Up 11 | 5 4 . 2 Fast Attach . | . . . . Attach 12 | 5 2 2 3 Detach 1 | . 1 . . Swap . | . . . . Drop 2 | . 2 . . Fire 23 | . 6 1 16 Melee . | . . . . Ram . | . . . . Kick . | . . . . Crush . | . . . . Escape Stasis . | . . . . Rewire . | . . . . Trap . | . . . . Miscellaneous . | . . . . Route ------- -11/Scrapyard -10/Materials (discovered 2 exits: [*Mat x2]) -9/Materials -9/Mines (discovered 2 exits: *Mat x2) History --------- Turn | Location | Event 4 | -11/Scrapyard | Discovered new exit (range 16) 67 | -11/Scrapyard | Entered Materials 185 | -10/Materials | Discovered new exit (range 16) 197 | -10/Materials | Discovered new exit (range 16) 274 | -10/Materials | Entered another Materials area 274 | -9/Materials | Evolved 2 slots: Propulsion x2 287 | -9/Materials | Discovered new exit (range 16) 291 | -9/Materials | Entered Mines 425 | -9/Mines | Identified exit to Materials 436 | -9/Mines | Build established: Sprinter 465 | -9/Mines | Learned location of Storage (-9) 509 | -9/Mines | Core integrity fell below 50% 515 | -9/Mines | Learned location of Zion (-7) 538 | -9/Mines | Discovered exit to Materials (range 5) 554 | -9/Mines | Core integrity fell below 20% 584 | -9/Mines | Lost 3 parts (2n1w) 657 | -9/Mines | Destroyed by YI-UF0 with YI-UF0's Doublenader Last Messages --------------- Acquired 4 matter. U-05 Engineer lays Concrete. Acquired derelict log, extracted data. Data stored: Factory entrances (x1). EXIT=FOUND: MATERIALS VTOL Module destroyed. Spread Laser destroyed. VTOL Module destroyed. K-01 Serf collects debris. C-30 ARC bursts open, deploying its payload. G-47 Trooper unfolds itself. G-34 Mercenary unfolds itself. Acquired Lgt. Assault Rifle. T-07 Excavator is excavating. Acquired 80 matter. YI-UF0: "BOOM!" The unstable cave ceiling collapses. YI-UF0 mumbles something. K-01 Serf collects debris. Lgt. Assault Rifle destroyed. Map ----- +----------------------------------------------------+ | # ##?# = #???????????????# #??# ### | | # #?# ###### #???????????????# #??# | | ### ##???## #???????????????# #??## | | ### ##???## ##???????????????# #???## | | #####????# #?????????????#### #????## | | #???????## #?????????????# #?????## | | #???????# ##?????????????# ####??????#### | | #??????## ##??????????????# #????????????# | | #??????# #????????????#### ##########???? | | #??????# ##???????????# #???? | | #??????## #???????????# """ """ """ #???? | | ##???????# #???????????# """ """ """ #???? | | ##????????# #???????????# """ """ """ #???? | | #?????????# #???????????# #???? | | #???????### #???????????# """ """ """ #???? | | ?????#### ##???????????# """ """ """ #???? | | ????## #????????????# """ """ """ #???? | | ????# ##????????????# #???? | | ??### #????????????########T######???? | | #### #??????????#?????????###????????? | | ## ############# ####???????????????? | | #???????????????# | | ############# #??????????????## | | #?????????????# ####?????????## | | ###########????# #???????### | | ### # k @#????##### #?????## | | ##?# ##### ## #???????? #???### | | ##?### ## # # #??# ## #???###### ###### | | #???# # ### ##?# ## #???# % | | #???#### #?# ## #???# ##### # ## | | #?????## #?# # #???# ###???# ## #### | | ##???### #?# # ##### ##??# ######??# | | ##???## ##?# # g < ##?# #??????## | | ????## #??# # #?# #####?## | | ???## ###?## # #?# #?# | | ???# ##??## ## ### ##?##### ### | | ??# ## ##### ### ##??????# ## | | ? #?### #######??###???????# | | ? #????## ##??????????????????# ! | | ? #??????######### ##???????????????????# | | ?? #???????????????####????????????????????## | | ????????????????????????????????????????????## | | ?????????????????????????????????????????????##### | | ?????????????????????????????????????????????????? | | ?????????????????????????????????????????????????? | | | | | | | | | | | +----------------------------------------------------+ Best States ------------- Heat Dissipation 28 Energy Generation 10 Energy Capacity 250 Matter Stores 300 Matter Capacity 300 Sight Range 16 Terrain Scan Density 10 Evasion (%) 64 Recoil Reduction 2 Item Schematics ----------------- None Robot Schematics ------------------ None Fabricated ------------ Nothing Repaired ---------- Nothing Alien Tech Used ----------------- None Achievements -------------- True Hacker Challenges ------------ None Game ------ Seed BoreExpertRecalibrator Manual? 0 Play Time 00:12:21 Cumulative 155.9 hours Start 2025.09.22 @ 12:59:05 End 2025.09.22 @ 13:06:39 Sessions 1 Manual Loads 0 Difficulty Rogue Special Mode None Game No. 507 Rogue 506 Adventurer 1 Explorer 0 Win Type - Total 0 Types 0/0/0/0/0/0/0/0/0/0 Lore% 56 Gallery% 53 Achievement% 42 Wizard Run 0 Options --------- Layout 1 ASCII 0 Keyboard 0 Movement Mouse Keybinds 0 Fullscreen 2 Font 24/Smallcaps Map View 50x35 Zoom Use 0% Tactical HUD 0 Map Filters NONE Filters NONE Steam 1 RUN: 81c4274f-43a2-4bf4-9a72-e635b0f13068